Cogmind - Beta 9.6 @@@ ROGUE MODE // 2020.06.03 @ 09:31:34 // AFD2020/Player2 Player: CreepyD Result: Destroyed by S-10 Pest with Light Assault Rifle Performance ------------- Evolutions (0) 0 Regions Visited (2) 400 Robots Destroyed (16) 80 Value Destroyed (140) 140 Prototype IDs (0) 0 Alien Tech Used (0) 0 Bonus (-75) -75 TOTAL SCORE: 545 Bonus ------- Follower Combat Kills 63 Friendly Fire -138 Cogmind --------- Core Integrity 0/250 Matter 271/300 Energy 124/125 System Corruption 0% Temperature Cool (0) Movement Rolling (100) Location -10/Mines Parts ------- > --- POWER (1) -------- Light Ion Engine > --- PROPULSION (2) --- Compact Wheel Compact Wheel > --- UTILITY (2) ------ Heat Sink Power Shielding > --- WEAPON (2) ------- Light Assault Rifle > --- INVENTORY (4) ---- Flight Unit Light Assault Rifle Peak State ------------ > --- POWER ------------ Ion Engine > --- PROPULSION ------- Wheel Compact Wheel > --- UTILITY ---------- Improved Terrain Scanner Seismic Analyzer > --- WEAPON ----------- Light Assault Rifle Light Assault Rifle > --- INVENTORY -------- Ion Engine Small Storage Unit Small Laser [Rating: 8] Favorites ----------- Power Light Ion Engine Engine Light Ion Engine Propulsion Compact Wheel Wheel Compact Wheel Utility Seismic Analyzer Device Improved Terrain Scanner Processor Seismic Analyzer Protection Power Shielding Weapon Light Assault Rifle Energy Gun Small Laser Energy Cannon Beam Cannon Ballistic Gun Light Assault Rifle Build | -11 -10 -10 ------- Run | Scr Mat Min Slots Evolved . | . . . Power . | . . . Propulsion . | . . . Utility . | . . . Weapon . | . . . Parts Attached 17 | 7 1 9 Power 2 | 1 . 1 Engine 2 | 1 . 1 Core . | . . . Reactor . | . . . Propulsion 4 | 2 1 1 Treads . | . . . Leg . | . . . Wheel 4 | 2 1 1 Hover . | . . . Flight . | . . . Utility 4 | 2 . 2 Device 2 | 1 . 1 Storage . | . . . Processor 1 | 1 . . Hackware . | . . . Protection 1 | . . 1 Artifact . | . . . Weapon 7 | 2 . 5 Energy Gun 1 | . . 1 Energy Cannon 1 | . . 1 Ballistic Gun 5 | 2 . 3 Ballistic Cannon . | . . . Launcher . | . . . Special Weapon . | . . . Impact Weapon . | . . . Slashing Weapon . | . . . Piercing Weapon . | . . . Special Melee Weapon . | . . . Unidentified Prototypes . | . . . Parts Lost 4 | . . 4 Power . | . . . Propulsion 1 | . . 1 Utility . | . . . Weapon 3 | . . 3 Highest Loss Streak 2 | . . 2 Average Slot Usage (%) 90 | . 98 89 Engine 14 | . 14 14 Wheel 22 | . 26 21 Device 12 | . 14 11 Processor 10 | . 14 9 Protection 3 | . . 4 Energy Gun 1 | . . 1 Energy Cannon 3 | . . 4 Ballistic Gun 21 | . 28 20 Naked Turns . | . . . Heaviest Build 9 | 8 8 9 Greatest Support 32 | 26 32 32 Greatest Overweight (x) . | . . . Average Overweight (x) . | . . . Largest Inventory Capacity 4 | 4 4 4 Average Capacity 4 | 4 4 4 Most Carried 4 | 4 2 3 Average Carried 1 | 2 . 1 Final Capacity 4 | 4 4 4 Final Carried 3 | 3 . 2 Class Distribution -------------------- 70% | Mutant 29% | Scavenger-Mutant Dominant Class ---------------- Mutant | -10/Materials Mutant | -10/Mines Resources | -11 -10 -10 ----------- Run | Scr Mat Min Matter Collected 434 | 308 26 100 Remotely . | . . . Salvage Created 361 | 89 51 221 Parts 29 | 8 4 17 Haulers Intercepted . | . . . Recyclers Shooed 1 | . 1 . Parts Field Recycled . | . . . Retrieved Matter . | . . . Parts Self-Destructed . | . . . Prevented . | . . . Kills | -11 -10 -10 ------- Run | Scr Mat Min Combat Hostiles Destroyed 10 | . 3 7 Guns 10 | . 3 7 Classes Destroyed 3 | 2 1 . Tunneler 4 | 2 . 2 Recycler 2 | 1 . 1 Swarmer 10 | . 3 7 Best Kill Streak 3 | 3 3 2 Combat Bots Only 3 | . 3 2 Max Kills in Single Turn 1 | 1 1 1 Gunslinging . | . . . Exploded . | . . . Melee . | . . . Uniques/NPCs Destroyed . | . . . Combat | -11 -10 -10 -------- Run | Scr Mat Min Damage Taken 513 | 1 142 370 Core 159 | 1 23 135 Absorbed by Shields . | . . . Core Remaining (%) 99 | 99 . . Volleys Fired 70 | 19 14 37 Largest 2 | 2 2 2 Hottest 80 | 40 40 80 Shots Fired 124 | 38 28 58 Gun 120 | 38 28 54 Cannon 4 | . . 4 Launcher . | . . . Special . | . . . Kinetic 109 | 38 28 43 Thermal 15 | . . 15 Explosive . | . . . Electromagnetic . | . . . Robot Hit Streak 6 | 5 6 6 Robot Miss Streak 10 | 3 10 8 Penetration Max . | . . . Secondary Targets 1 | . . 1 Max Gunslinging Chain 1 | . . 1 Shots Hit Robots 56 | 24 8 24 Core Hits 34 | 8 8 18 Critical Hits 1 | . . 1 Critical Kills . | . . . Critical Parts Destroyed 1 | . . 1 Melee Attacks . | . . . Impact . | . . . Slashing . | . . . Piercing . | . . . Sneak Attacks . | . . . Combat Hostiles . | . . . Follow-up Attacks . | . . . Damage Inflicted 676 | 231 116 329 Guns 620 | 229 116 275 Cannons 34 | . . 34 Explosions . | . . . Melee . | . . . Ramming 22 | 2 . 20 Kinetic 544 | 229 116 199 Thermal 110 | . . 110 Explosive . | . . . Electromagnetic . | . . . Impact . | . . . Slashing . | . . . Piercing . | . . . Highest Corruption . | . . . Average Corruption . | . . . Corruption Purged . | . . . Overload Shots . | . . . Overflow Damage . | . . . Projectiles . | . . . Explosions . | . . . Melee . | . . . Knockbacks . | . . . Impact . | . . . Kinetic . | . . . Secondary . | . . . Self-Inflicted Damage 10 | 1 . 9 Shots . | . . . Rammed 4 | 1 . 3 Targets Rammed 4 | 1 . 3 Kicked . | . . . Crushed . | . . . Highest Temperature 40 | . . 40 Average Temperature 18 | . . 18 Received Heat Transfer . | . . . Siege Activations . | . . . Robots Corrupted . | . . . Combat Hostiles . | . . . Parts Fried . | . . . Impact Corruptions . | . . . Robots Melted . | . . . Combat Hostiles . | . . . Parts Melted . | . . . Heat Transferred 221 | . . 221 Parts Sabotaged . | . . . Parts Stolen . | . . . Parts Stripped . | . . . Power Chain Reactions . | . . . Missiles Intercepted . | . . . Alert | -11 -10 -10 ------- Run | Scr Mat Min Peak Influence 341 | 15 189 341 Average Influence 189 | 3 89 244 Maximum Alert Level 1 | . . 1 Low Security (%) 36 | 100 100 11 Level 1 63 | . . 88 Level 2 . | . . . Level 3 . | . . . Level 4 . | . . . Level 5 . | . . . High Security . | . . . Max Security . | . . . Squads Dispatched . | . . . Investigation . | . . . Extermination . | . . . Reinforcement . | . . . Assault . | . . . Garrison . | . . . Intercept . | . . . Construction Impeded . | . . . Haulers Reinforced . | . . . Stealth | -11 -10 -10 --------- Run | Scr Mat Min Distress Signals . | . . . Communications Jammed . | . . . Distress Signals . | . . . Times Spotted 25 | . 7 18 Peak Tracking Total 6 | . 4 6 Tactical Retreats 2 | . . 2 Traps | -11 -10 -10 ------- Run | Scr Mat Min Traps Triggered . | . . . Indirectly . | . . . Trap Hack Attempts . | . . . Triggered . | . . . Disarmed . | . . . Reprogrammed . | . . . Reused . | . . . Traps Extracted . | . . . Installed . | . . . Triggered . | . . . Machines | -11 -10 -10 ---------- Run | Scr Mat Min Machines Disabled . | . . . Max in Single Turn . | . . . Machines Sabotaged . | . . . Garrisons Compromised . | . . . Overloaded Fab Kills . | . . . Fab Network Shutdowns . | . . . Hacking | -11 -10 -10 --------- Run | Scr Mat Min Machines Accessed 1 | . 1 . Terminals 1 | . 1 . Fabricators . | . . . Repair Stations . | . . . Recycling Units . | . . . Scanalyzers . | . . . Garrison Access . | . . . Total Hacks 2 | . 2 . Successful . | . . . Failed 2 | . 2 . Catastrophic . | . . . Database Lockouts . | . . . Manual 2 | . 2 . Terminals 2 | . 2 . Fabricators . | . . . Repair Stations . | . . . Recycling Units . | . . . Scanalyzers . | . . . Garrison Access . | . . . Terminal Hacks . | . . . Fabricator Hacks . | . . . Repair Station Hacks . | . . . Recycling Unit Hacks . | . . . Scanalyzer . | . . . Garrison Access Hacks . | . . . Unauthorized Hacks . | . . . Terminals . | . . . Fabricators . | . . . Repair Stations . | . . . Recycling Units . | . . . Scanalyzers . | . . . Garrison Access . | . . . Data Cores Recovered . | . . . Used . | . . . Hacking Detections 1 | . 1 . Full Trace Events . | . . . Feedback Events . | . . . Feedback Blocked . | . . . Robot Schematics Acquired . | . . . Robots Built . | . . . Matter . | . . . Time . | . . . Total Robot Build Rating . | . . . Part Schematics Acquired . | . . . Parts Built . | . . . Matter . | . . . Time . | . . . Total Part Build Rating . | . . . Parts Repaired . | . . . Time . | . . . Parts Recycled . | . . . Recycled Matter . | . . . Retrieved Matter . | . . . Retrieved Components . | . . . Parts Scanalyzed . | . . . Part Schematics Acquired . | . . . Parts Damaged . | . . . Bothacking | -11 -10 -10 ------------ Run | Scr Mat Min Used RIF Installer . | . . . Robots Hacked . | . . . Non-combat . | . . . Combat . | . . . Robot Hacks Applied . | . . . Relay Couplers Released . | . . . Robots Rewired . | . . . Allies Hacked . | . . . Hacks Repelled . | . . . Allies | -11 -10 -10 -------- Run | Scr Mat Min Total Allies 1 | . 1 . Largest Group 1 | . 1 1 Highest-Rated Group 58 | . 57 58 Highest-Rated Ally 58 | . 57 58 Total Orders . | . . . Ally Attacks 39 | . 14 25 Total Damage 273 | . 96 177 Kills 10 | . 4 6 Allies Corrupted . | . . . Allies Melted . | . . . Intel | -11 -10 -10 ------- Run | Scr Mat Min Robot Analysis Total . | . . . Derelict Logs Recovered 1 | . . 1 Drone Launches . | . . . Drone Recoveries . | . . . Exploration | -11 -10 -10 ------------- Run | Scr Mat Min Turns Passed 869 | 113 130 626 Spaces Moved 530 | 41 62 427 Core 5 | 5 . . Treads . | . . . Legs . | . . . Wheels 525 | 36 62 427 Hover . | . . . Flight . | . . . Fastest Speed 50 | 50 90 100 Average Speed 98 | 85 97 100 Slowest Speed 100 | 90 100 100 Overloaded Moves . | . . . Propulsion Burnouts . | . . . Robots Hopped . | . . . Cave-ins Triggered . | . . . Exploration Rate (%) 33 | 4 22 73 Regions Visited 2 Branch Regions 1 Pre-discovered Areas 1 | . . 1 Known Exits Taken . | . . . Unknown Exits Taken 2 | 1 1 . Scrap Searched 1 | . . 1 Spaces Dug . | . . . Terrain Destroyed . | . . . Melee . | . . . Projectile . | . . . AOE . | . . . Actions | -11 -10 -10 --------- Run | Scr Mat Min Total 777 | 88 111 578 Wait 128 | 12 30 86 Move 529 | 41 61 427 Hop . | . . . Pick Up 20 | 9 1 10 Fast Attach 1 | 1 . . Attach 12 | 6 1 5 Detach . | . . . Swap 4 | . . 4 Drop 9 | . 4 5 Fire 70 | 19 14 37 Melee . | . . . Ram 3 | . . 3 Kick . | . . . Crush . | . . . Escape Stasis . | . . . Rewire 1 | . . 1 Trap . | . . . Miscellaneous . | . . . Route ------- -11/Scrapyard -10/Materials -10/Mines History --------- Turn | Location | Event 42 | -11/Scrapyard | Discovered new exit (range 16) 114 | -11/Scrapyard | Entered Materials 187 | -10/Materials | Discovered new exit (range 16) 244 | -10/Materials | Entered Mines 244 | -10/Mines | Accompanied by 1 ally 251 | -10/Mines | Learned Materials emergency access door positions 287 | -10/Mines | Met a Derelict bent on vengeance 322 | -10/Mines | Build established: Mutant 372 | -10/Mines | Core integrity fell below 50% 775 | -10/Mines | Learned location of Storage (-9) 853 | -10/Mines | Core integrity fell below 20% 870 | -10/Mines | Destroyed by S-10 Pest with Light Assault Rifle Last Messages --------------- 00662_ Acquired Com. Wheel. 00664_ Player 2 acquires Lgt. Assault Rifle. 00667_ Acquired Heat Sink. 00685_ Discarded Seismic Analyzer. 00686_ Acquired Power Shielding. 00775_ A derelict emerges from the shadows: "Are any of them following you? I'm here trying to lose some heat after our second raid on Storage failed. Whatever you do stay away from that place, they've tightened security following our previous successful raids." World map updated: -9/Storage. 00777_ JR-ZKT(g): "We scattered so the Unaware couldn't effectively use their advantage in numbers, and I suggest you do the same." 00777_ JR-ZKT(g) slips back into the shadows. 00799_ T-07 Excavator destroyed. 00802_ Acquired 18 matter. 00805_ Player 2 drops Flight Unit. 00805_ Player 2 removes Wheel. 00805_ Player 2 attaches Wheel. 00857_ Beam Cannon destroyed. 00858_ S-10 Pest destroyed. Map ----- +----------------------------------------------------+ | ???????????????????????????????#???## ##### | | ???????????????????????????????#???## ##??# | | ??????????????????????? ? ??##??#?## ##?? | | ??????????????????????#???? ??#?#???## """" ##? | | ??????????????????????????? ?#####??## """" ## | | ??????????????????????#??##?##????### *"""" # | | ?????????????????????????#? ??#?#### | | ?????????????????? ??###?#? ? ?# * ### | | ?????????????????? #####?#?????# ##### | | ????????????????? ##??#? ### ####?### | | ?????????????? ?? ###?# #### #?#?##?# | | ????????????????? ##### #### #?##??### | | ?????????????? ??? #### #?#?###?## | | ??????????????????# ####### ####?##??# | | ??????????????????### ##?### ###????#?# | | ?????????????????????#k ##?## ###?####?? | | ??????????????#????### ##?## #?#? ### | | ?????????????????##?## #### ### ## | | ???????????????###### r # | | ??????????????## rs% | | ?????????????## #### ## | | ????????#???## #### ##?? | | ???????????## ######???#? | | ???????????# *k #?######## | | ??????????## ####%%##?#???#?#? | | ???????#?#?## ### @ ##### *#?##???###? | | ????????#?### ?#?## ## s#####?# #?##????#? | | ????????????# ??????# ## #?#?### #??###????? | | ??????#?#?? ?? ??### ## #???? ????????#? | | ????????## ##?? ?????## ## ##### ??? ??#?? | | ?????????? ??#???????## ####? ?### ???? | | ?#?????????#??#???????# ## #?#????? | | ???????????#?##?#?????# ########### ####???????? | | ?????????########?????# #??????#?## #??#?? ????? | | ?#??????## #######%##??##?#??# ###????????? | | ??????#?# ! k#??#?#???## ???????????? | | ????????# ########??###????# ????#??????? | | ??#?????## ##?##??????##????? ????#??????? | | ??#??????## #???###???????#??? ???????????? | | ???????#??## ##????????????????#???????????? | | ?????####### ###??##??#???????#?????????????? | | ??????# #??######???? #?????#??????????# | | ??#???# #?## ##?????????????????????## | | ???#??# ### #?# #?????????????????????# | | ??????# #### #### #??#? ???????????????## | | ??##### ##?####### #???#???????????????## | | ??# #?###### ##?#?????#???????????# | | ??# ### ### #????????????????????# | | ??# ##?# ######?????????????### | | ??# ## ##?## #?????????????# | +----------------------------------------------------+ Best States ------------- Heat Dissipation 35 Energy Generation 10 Energy Capacity 250 Matter Stores 300 Matter Capacity 300 Sight Range 16 Terrain Scan Range 16 Terrain Scan Density 60 Power Shielding 33 Evasion (%) 42 Item Schematics ----------------- None Robot Schematics ------------------ None Fabricated ------------ Nothing Alien Tech Used ----------------- None Achievements -------------- None Challenges ------------ None Player 2 | -11 -10 -10 ---------- Run | Scr Mat Min Slots Evolved . | . . . Power . | . . . Propulsion . | . . . Utility . | . . . Weapon . | . . . Parts Attached 13 | . 9 4 Parts Lost . | . . . Damage Taken 225 | . 89 136 Core 96 | . 39 57 Player 2/Cogmind (%) 37 | . 62 29 Absorbed by Shields . | . . . Damage Inflicted 273 | . 96 177 Player 2/Cogmind (%) 28 | . 45 34 Combat Hostiles Destroyed 9 | . 3 6 Player 2/Cogmind (%) 47 | . 50 46 Game ------ Seed AssaultColdGuard Manual? 0 Play Time 00:11:18 Cumulative 52.6 hours Start 2020.06.03 @ 09:22:23 End 2020.06.03 @ 09:31:34 Sessions 1 Manual Loads 0 Difficulty Rogue Special Mode AFD2020/Player2 Game No. 54 Rogue 53 Adventurer 1 Explorer 0 Win Type - Total 0 Types 0/0/0/0/0/0/0 Lore% 26 Gallery% 49 Achievement% 34 Wizard Run 0 Options --------- ASCII 0 Keyboard 0 Movement Numpad Keybinds 0 Fullscreen 0 Font 16/Smallcaps Map View 76x50 Tactical HUD 1 Map Filters NONE Filters NONE Steam X RUN: ea818459-717c-44c0-b56b-17c89ec6ec5f